Cogmind - Beta 13 @@@ ROGUE MODE // 2024.03.01 @ 15:56:06 // Winter2019/RPGLIKE Player: Minty Result: Destroyed by Y-45 Defender with Heavy Assault Rifle Performance ------------- Evolutions (2) 1000 Regions Visited (3) 600 Robots Destroyed (72) 360 Value Destroyed (1729) 1729 Prototype IDs (5) 100 Alien Tech Used (0) 0 Bonus (0) 0 TOTAL SCORE: 3789 Bonus ------- None Cogmind --------- Core Integrity 0/800 Matter 103/350 Energy 220/220 System Corruption 7% Temperature Cool (5) Movement Treading (170) Location -8/Materials Parts ------- > --- POWER (1) -------- Makeshift Power Source > --- PROPULSION (2) --- Armored Treads Armored Treads > --- UTILITY (4) ------ Improved Terrain Scanner Improved Utility Shielding Cobbler Unit > --- WEAPON (3) ------- Subdweller Shrapnel Launcher Subdweller Shrapnel Launcher (fused) Great Axe > --- INVENTORY (3) ---- Makeshift Light Armor Plating Recalibrator Great Axe Peak State ------------ > --- POWER ------------ Makeshift Power Source > --- PROPULSION ------- Armored Treads Armored Treads > --- UTILITY ---------- Improved Terrain Scanner Improved Utility Shielding Cobbler Unit > --- WEAPON ----------- Subdweller Shrapnel Launcher Subdweller Shrapnel Launcher Great Axe > --- INVENTORY -------- Makeshift Light Armor Plating Recalibrator Great Axe [Rating: 29] Favorites ----------- Power Ion Engine Engine Ion Engine Propulsion Flight Unit Treads Armored Treads Leg Aluminum Leg Wheel Subdweller Monowheel Hover Unit Hover Unit Flight Unit Flight Unit Utility Improved Terrain Scanner Device Improved Terrain Scanner Processor Signal Interpreter Protection Makeshift Light Armor Plating Weapon Subdweller Shrapnel Launcher Energy Gun EM Pulse Gun Energy Cannon Subdweller Beam Cannon Ballistic Gun Assault Rifle Ballistic Cannon Battle Cannon Launcher Subdweller Shrapnel Launcher Special Weapon Flamer Slashing Weapon Great Axe Build | -11 -10 -10 -8 ------- Run | Yrd Mat Sub Mat Slots Evolved 6 | 3 . 1 2 Power . | . . . . Propulsion 1 | 1 . . . Utility 3 | 1 . . 2 Weapon 2 | 1 . 1 . Parts Attached 53 | 5 18 21 9 Power 4 | 1 2 1 . Engine 4 | 1 2 1 . Core . | . . . . Reactor . | . . . . Propulsion 16 | 3 6 2 5 Treads 5 | . . . 5 Leg 1 | 1 . . . Wheel 3 | 2 . 1 . Hover 4 | . 4 . . Flight 3 | . 2 1 . Utility 14 | . 6 6 2 Device 6 | . 3 2 1 Storage . | . . . . Processor 2 | . 2 . . Hackware . | . . . . Protection 6 | . 1 4 1 Artifact . | . . . . Weapon 19 | 1 4 12 2 Energy Gun 6 | . 3 3 . Energy Cannon 1 | . . 1 . Ballistic Gun 4 | 1 . 2 1 Ballistic Cannon 3 | . . 3 . Launcher 2 | . . 2 . Special Weapon 2 | . 1 1 . Impact Weapon . | . . . . Slashing Weapon 1 | . . . 1 Piercing Weapon . | . . . . Special Melee Weapon . | . . . . Unidentified Prototypes . | . . . . Corrupted Parts 1 | . . . 1 System Corruption 7 | . . . 7 Parts Lost 1 | . . 1 . Power . | . . . . Propulsion 1 | . . 1 . Utility . | . . . . Weapon . | . . . . Highest Loss Streak 1 | . . 1 . To Critical Strikes . | . . . . Average Slot Usage (%) 89 | . 95 88 84 Engine 12 | . 14 12 10 Treads 2 | . . . 17 Wheel 1 | . 1 2 . Hover 3 | . 11 . . Flight 16 | . 13 22 3 Device 16 | . 15 15 20 Processor 1 | . 4 . . Protection 7 | . 5 8 5 Energy Gun 7 | . 18 5 . Ballistic Gun 4 | . 8 2 2 Launcher 12 | . . 16 21 Naked Turns . | . . . . Heaviest Build 39 | 9 17 28 39 Greatest Support 50 | 31 31 30 50 Greatest Overweight (x) 2 | . 1 1 2 Average Overweight (x) . | . . . . Largest Inventory Capacity 3 | 2 3 3 3 Average Capacity 2 | 2 2 3 3 Most Carried 3 | 2 3 3 3 Average Carried 2 | . 2 2 2 Final Capacity 3 | 2 3 3 3 Final Carried 3 | 1 3 3 3 Class Distribution -------------------- 45% | Mutant 23% | Scavenger-Mutant 15% | Scout 7% | Derelict-Skirmisher 6% | Skirmisher Dominant Class ---------------- Mutant | -10/Materials Mutant | -10/Subcaves Mutant | -8/Materials Resources | -11 -10 -10 -8 ----------- Run | Yrd Mat Sub Mat Matter Collected 1610 | 236 392 672 310 Remotely . | . . . . Salvage Created 1704 | . 867 417 420 Parts 150 | . 74 46 30 Haulers Intercepted 1 | . 1 . . Recyclers Shooed 3 | . 1 . 2 Parts Field Recycled . | . . . . Retrieved Matter . | . . . . Parts Self-Destructed 17 | . . 17 . Prevented 3 | . . 3 . Kills | -11 -10 -10 -8 ------- Run | Yrd Mat Sub Mat Combat Hostiles Destroyed 43 | . 14 22 7 Melee 2 | . . . 2 Guns 15 | . 12 3 . AOE 25 | . 2 18 5 Classes Destroyed 15 | . 9 5 1 Worker 2 | . 2 . . Builder 11 | . 5 . 6 Tunneler 2 | . 2 . . Hauler 1 | . 1 . . Recycler 6 | . 1 . 5 Mechanic 1 | . 1 . . Operator 1 | . . . 1 Turret 2 | . . 2 . Watcher 3 | . 3 . . Swarmer 11 | . 6 4 1 Grunt 16 | . 8 2 6 Sentry 1 | . . 1 . Artisan 2 | . . 2 . Cobbler 1 | . . 1 . Subdweller 15 | . . 15 . Best Kill Streak 9 | . 6 5 9 Combat Bots Only 3 | . 3 3 3 Max Kills in Single Turn 4 | . 2 2 4 Gunslinging . | . . . . Exploded 2 | . 2 2 1 Melee 1 | . . . 1 Uniques/NPCs Destroyed . | . . . . Combat | -11 -10 -10 -8 -------- Run | Yrd Mat Sub Mat Hostile Shots Fired 173 | . 65 46 62 Missed 48 | . 23 16 9 Damage Taken 2212 | . 489 808 915 Core 1647 | . 347 587 713 Absorbed by Shields . | . . . . Redirected to Core 1351 | . 243 494 614 Redirected to Shielding 19 | . . . 19 Ignored by Resistances 54 | . 4 39 11 Regen/Repaired (Parts) 14 | . 14 . . Core Remaining (%) 90 | 100 . 80 . Volleys Fired 151 | . 82 59 10 Largest 3 | . 2 3 2 Hottest 120 | . 100 120 80 Shots Fired 264 | . 155 97 12 Gun 207 | . 147 59 1 Cannon 6 | . . 6 . Launcher 43 | . . 32 11 Special 8 | . 8 . . Kinetic 103 | . 54 37 12 Thermal 11 | . 8 3 . Explosive . | . . . . Electromagnetic 150 | . 93 57 . Robot Hit Streak 11 | . 10 11 2 Robot Miss Streak 4 | . 4 4 4 Penetration Max . | . . . . Secondary Targets 3 | . 3 . . Max Gunslinging Chain 1 | . 1 . . Shots Hit Robots 130 | . 71 54 5 Core Hits 112 | . 41 45 26 Critical Kills . | . . . . Critical Parts Destroyed . | . . . . Critical Strikes 2 | . 1 1 . Corrupt 2 | . 1 1 . Melee Attacks 1 | . . . 1 Impact . | . . . . Slashing 1 | . . . 1 Piercing . | . . . . Sneak Attacks . | . . . . Combat Hostiles . | . . . . Follow-up Attacks . | . . . . Damage Inflicted 4697 | . 1107 2405 1185 Guns 1360 | . 968 392 . Cannons 28 | . . 28 . Explosions 3244 | . 139 1985 1120 Melee 43 | . . . 43 Ramming 22 | . . . 22 Kinetic 3394 | . 282 1992 1120 Thermal 174 | . 139 35 . Explosive . | . . . . Electromagnetic 1064 | . 686 378 . Impact . | . . . . Slashing 43 | . . . 43 Piercing . | . . . . Highest Corruption 7 | . . . 7 Average Corruption 7 | . . . 7 Corruption Purged . | . . . . Corruption Blocked . | . . . . Effects 8 | . . . 8 Message Errors 3 | . . . 3 Heat Flow Errors 1 | . . . 1 Energy Discharges 1 | . . . 1 Parts Rejected 1 | . . . 1 Parts Fused 1 | . . . 1 Misfires 1 | . . . 1 Overload Shots . | . . . . Overflow Damage 74 | . . 15 59 Projectiles . | . . . . Explosions 74 | . . 15 59 Melee . | . . . . Knockbacks . | . . . . Impact . | . . . . Kinetic . | . . . . Secondary . | . . . . Self-Inflicted Damage 460 | . 23 323 114 Shots 14 | . 1 9 4 Rammed 9 | . . . 9 Targets Rammed 10 | . . . 10 Kicked . | . . . . Crushed 1 | . . . 1 Highest Temperature 263 | . 254 69 263 Average Temperature 50 | . 51 14 67 Received Heat Transfer 873 | . 225 144 504 Siege Activations . | . . . . Robots Corrupted 1 | . . 1 . Combat Hostiles 1 | . . 1 . Parts Fried 2 | . . 2 . Impact Corruptions . | . . . . Robots Melted . | . . . . Combat Hostiles . | . . . . Parts Melted . | . . . . Heat Transferred 200 | . 200 . . Parts Sabotaged . | . . . . Parts Stolen . | . . . . Parts Stripped . | . . . . Power Chain Reactions 4 | . 3 1 . Alert | -11 -10 -10 -8 ------- Run | Yrd Mat Sub Mat Peak Influence 326 | . 304 . 326 Initial 91 | . . . 91 Average 122 | . 119 . 134 Maximum Alert Level 1 | . 1 . 1 Low Security (%) 87 | 100 87 . 85 Level 1 12 | . 12 . 14 Level 2 . | . . . . Level 3 . | . . . . Level 4 . | . . . . Level 5 . | . . . . High Security . | . . . . Max Security . | . . . . Squads Dispatched 11 | . 7 . 4 Investigation 8 | . 7 . 1 Extermination . | . . . . Reinforcement 3 | . . . 3 Assault . | . . . . Garrison . | . . . . Intercept . | . . . . Searches Triggered . | . . . . Construction Impeded 2 | . . . 2 Haulers Reinforced . | . . . . Active Scanning Responses . | . . . . Cargo Convoy Interrupts . | . . . . Stealth | -11 -10 -10 -8 --------- Run | Yrd Mat Sub Mat Distress Signals 1 | . 1 . . Communications Jammed . | . . . . Distress Signals . | . . . . Times Spotted 65 | . 19 31 15 Peak Tracking Total 4 | . 3 4 3 Tactical Retreats 3 | . 2 1 . Traps | -11 -10 -10 -8 ------- Run | Yrd Mat Sub Mat Traps Triggered 2 | . 2 . . Indirectly . | . . . . Trap Hack Attempts . | . . . . Triggered . | . . . . Disarmed . | . . . . Reprogrammed . | . . . . Reused . | . . . . Traps Extracted . | . . . . Installed 1 | . . 1 . Triggered . | . . . . Most Traps Carried 1 | . . 1 . Machines | -11 -10 -10 -8 ---------- Run | Yrd Mat Sub Mat Machines Disabled 13 | . 6 4 3 Max in Single Turn 4 | . 1 4 1 Machines Repaired . | . . . . Machines Dismantled . | . . . . Machines Sabotaged . | . . . . Overloaded Fab Kills . | . . . . Hacking | -11 -10 -10 -8 --------- Run | Yrd Mat Sub Mat Machines Accessed 11 | . 8 1 2 Terminals 8 | . 6 . 2 Fabricators . | . . . . Repair Stations 1 | . 1 . . Recycling Units 1 | . 1 . . Scanalyzers . | . . . . Garrison Access . | . . . . Total Hacks 30 | . 23 3 4 Successful 20 | . 13 3 4 Failed 10 | . 10 . . Catastrophic 1 | . 1 . . Database Lockouts . | . . . . Manual 18 | . 16 . 2 Terminals 20 | . 16 . 4 Fabricators . | . . . . Repair Stations 3 | . 3 . . Recycling Units 4 | . 4 . . Scanalyzers . | . . . . Garrison Access . | . . . . Terminal Hacks 10 | . 5 3 2 Record 3 | . . 3 . Prototype ID Bank 3 | . 3 . . Unreport Threat 2 | . 1 . 1 Locate Traps 1 | . . . 1 Zone Layout 1 | . 1 . . Fabricator Hacks . | . . . . Repair Station Hacks 2 | . 2 . . Scan Component 1 | . 1 . . Repair 1 | . 1 . . Recycling Unit Hacks 1 | . 1 . . Report Inventory 1 | . 1 . . Scanalyzer . | . . . . Garrison Access Hacks . | . . . . Unauthorized Hacks 7 | . 5 . 2 Terminals 6 | . 4 . 2 Botnet 1 | . . . 1 Sabotage 5 | . 4 . 1 Fabricators . | . . . . Repair Stations . | . . . . Recycling Units 1 | . 1 . . Tunnel 1 | . 1 . . Scanalyzers . | . . . . Garrison Access . | . . . . Data Cores Recovered 1 | . . . 1 Used . | . . . . Hacking Detections 7 | . 6 . 1 Full Trace Events 4 | . 3 . 1 Feedback Events . | . . . . Feedback Blocked . | . . . . Robot Schematics Acquired . | . . . . Robots Built . | . . . . Authchips . | . . . . Time . | . . . . Total Robot Build Rating . | . . . . Part Schematics Acquired . | . . . . Parts Built . | . . . . Authchips . | . . . . Time . | . . . . Total Part Build Rating . | . . . . Parts Repaired 1 | . 1 . . Time 26 | . 26 . . Parts Recycled . | . . . . Recycled Matter . | . . . . Retrieved Matter . | . . . . Retrieved Components . | . . . . Parts Scanalyzed . | . . . . Part Schematics Acquired . | . . . . Parts Damaged . | . . . . Bothacking | -11 -10 -10 -8 ------------ Run | Yrd Mat Sub Mat Used RIF Installer . | . . . . Robots Hacked . | . . . . Non-combat . | . . . . Combat . | . . . . Robot Hacks Applied . | . . . . Relay Couplers Released . | . . . . Fabnet Peak Effective % . | . . . . Robots Rewired . | . . . . Allies Hacked . | . . . . Hacks Repelled . | . . . . Allies | -11 -10 -10 -8 -------- Run | Yrd Mat Sub Mat Total Allies . | . . . . Largest Group . | . . . . Highest-Rated Group . | . . . . Highest-Rated Ally . | . . . . Total Orders . | . . . . Ally Attacks . | . . . . Total Damage . | . . . . Kills . | . . . . Allies Corrupted . | . . . . Allies Melted . | . . . . Intel | -11 -10 -10 -8 ------- Run | Yrd Mat Sub Mat Robot Analysis Total . | . . . . Derelict Logs Recovered 2 | . . 2 . Drone Launches . | . . . . Drone Recoveries . | . . . . Exploration | -11 -10 -10 -8 ------------- Run | Yrd Mat Sub Mat Turns Passed 2567 | 26 730 1372 439 Spaces Moved 2929 | 16 819 1871 223 Core 1 | . . . 1 Treads 182 | . . . 182 Legs 10 | 10 . . . Wheels 260 | 6 34 220 . Hover 295 | . 295 . . Flight 2181 | . 490 1651 40 Fastest Speed 37 | 90 37 37 117 Average Speed 64 | 108 46 60 162 Slowest Speed 250 | 120 120 120 250 Overloaded Moves . | . . . . Propulsion Burnouts . | . . . . Robots Hopped 3 | . 3 . . Cave-ins Triggered . | . . . . Exploration Rate (%) 50 | 2 93 92 16 Regions Visited 3 Branch Regions 1 Pre-discovered Areas 3 | . 1 2 . Known Exits Taken . | . . . . Unknown Exits Taken 3 | 1 1 1 . Scrap Searched 10 | . . 10 . Spaces Dug 17 | . . . 17 Terrain Destroyed 493 | . 5 362 126 Melee . | . . . . Projectile . | . . . . AOE 493 | . 5 362 126 Terrain Rammed . | . . . . Walls Destroyed . | . . . . Machines Disabled . | . . . . Actions | -11 -10 -10 -8 --------- Run | Yrd Mat Sub Mat Total 3325 | 24 997 2022 282 Wait 86 | . 56 15 15 Move 2920 | 15 812 1870 223 Hop 3 | . 3 . . Pick Up 15 | 2 7 3 3 Fast Attach 32 | 2 11 15 4 Attach 7 | 2 1 1 3 Detach 4 | . 3 . 1 Swap 14 | 1 6 5 2 Drop 40 | 2 14 18 6 Fire 151 | . 82 59 10 Melee 1 | . . . 1 Ram . | . . . . Kick . | . . . . Crush 10 | . . . 10 Escape Stasis . | . . . . Rewire . | . . . . Trap 1 | . . 1 . Miscellaneous 41 | . 2 35 4 Route ------- -11/Scrapyard -10/Materials (discovered 5 exits: [*Mat x2] / [*Min x2] / *Sub) -10/Subcaves (discovered 3 exits: *Mat x2 / [*Rec]) -8/Materials History --------- Turn | Location | Event 1 | -11/Scrapyard | Upgraded with Propulsion slot (x1) 1 | -11/Scrapyard | Upgraded with Utility slot (x1) 1 | -11/Scrapyard | Upgraded with Weapon slot (x1) 1 | -11/Scrapyard | Discovered new exit (range 1) 27 | -11/Scrapyard | Entered Materials 116 | -10/Materials | Discovered new exit (range 15) 212 | -10/Materials | Discovered new exit (range 16) 300 | -10/Materials | Build established: Mutant 502 | -10/Materials | Discovered new exit (range 11) 539 | -10/Materials | Repaired EM Pulse Gun 548 | -10/Materials | Reached level 2 632 | -10/Materials | Discovered new exit (range 11) 632 | -10/Materials | Discovered new exit (range 16) 757 | -10/Materials | Entered Subcaves 759 | -10/Subcaves | Shifting Twisted Machinery released Battle Cannon 759 | -10/Subcaves | Reached level 3 759 | -10/Subcaves | Upgraded with Weapon slot (x1) 782 | -10/Subcaves | Shifting Twisted Machinery released Sub. Beam Cannon 950 | -10/Subcaves | Build established: Scout 996 | -10/Subcaves | Learned location of Zion (-7) 1000 | -10/Subcaves | Shifting Twisted Machinery released Flamer 1155 | -10/Subcaves | Discovered new exit (range 16) 1230 | -10/Subcaves | A swath of the cavern ceiling suddenly collapsed 1249 | -10/Subcaves | A swath of the cavern ceiling suddenly collapsed 1301 | -10/Subcaves | Ambushed by Subdwellers from Twisted Machinery 1357 | -10/Subcaves | Build established: Mutant 1429 | -10/Subcaves | Ambushed by Subdwellers from Twisted Machinery 1545 | -10/Subcaves | Shifting Twisted Machinery released Sub. Machine Gun 1562 | -10/Subcaves | Ambushed by Subdwellers from Twisted Machinery 1580 | -10/Subcaves | Discovered new exit (range 8) 1683 | -10/Subcaves | Discovered new exit (range 4) 1789 | -10/Subcaves | Shifting Twisted Machinery released Battle Rifle 1829 | -10/Subcaves | Visited Clippyterm 2129 | -10/Subcaves | Entered Materials 2131 | -8/Materials | Reached level 4 2138 | -8/Materials | Upgraded with Utility slot (x1) 2308 | -8/Materials | Core integrity fell below 50% 2319 | -8/Materials | Reached level 5 2349 | -8/Materials | Upgraded with Utility slot (x1) 2476 | -8/Materials | Core integrity fell below 20% 2568 | -8/Materials | Destroyed by Y-45 Defender with Heavy Assault Rifle Last Messages --------------- 02511_ Acquired 4 matter. 02511_ K-01 Serf collects debris. 02512_ U-05 Engineer lays Concrete. 02514_ K-01 Serf collects debris. 02514_ U-05 Engineer lays Concrete. 02525_ S JVAAH|OFKHVN&AGHWNBN E XLOC% 02525_ U-05 Engineer lays Concrete. 02531_ U-05 Engineer builds a Wall. 02534_ U-05 Engineer lays Concrete. 02536_ U-05 Engineer builds a Wall. 02547_ Connecting with Terminal... >>Force(Sabotage) SYSTEM_VULNERABLE[Neutrino Reactor] NETWORK_OVERLOAD_FAIL 02547_ ALERT: Suspicious activity at Terminal M003. Dispatching Investigation squad. 02556_ QBHN1UCRHSXTN=LZYWS JW 02567_ R-06 Scavenger destroyed. 02567_ S-10 Pest destroyed. 02567_ Electrolysis Chamber disabled. Map ----- +----------------------------------------------------+ | #?##??###? ?? ???????????????????????????????????? | | ###?###?? #? ??????????????????????????????????? | | ######### ? ?#???????????????????????????????????? | | ######?##???##???????????????????????????????????? | | ######## ?#??????????????????????????????????? | | !!####?# ?????????????????????????????????????? | | !!###### ? ?? ??????????????????????????????????? | | //###### ? ##??????????????????????????????????? | | ###?## ?#???????????????????????????????????? | | //#?###?##+##??#?????????????????????????????????? | | //#?### ?? ?????????##?#####? ?????????????????? | | ####### ?"""? ??#????##????#???"????????????????? | | ####### ""?""??#??? ######## "????????????????? | | ####### """???##?# # """ ?????????????? | | ####### """?? ?##??? s + ?????????????? | | ####### """?"?#?## ?? s[s # ""???????????????? | | ####### ?""""" ##??####;;;;;;; ""? ????????????? | | ####?## """"" ###?## ; "?"??????????????? | | ####### ###?## ; ??#???????????? | | #############?####?## % ; ? ??????????????? | | #######! ? ###?# ;#???#?###?#????????? | | # ?"" ?#?## ;#?#????###?????????? | | # "T" #####"" #####??#?##?????????? | | # #####"T #??####?####????????? | | ! ######+####?###"" ###??#??##??????????? | | # #### ######## @ ######?##???????????? | | # # ########+####Y########????#?????????? | | ###" ####### ######## #??# ##??####??????????????? | | " # # #### #?#???#?##???#????????? | | " " #### #??####?#?#???????????? | | ] " " #### ###?##???##???????????? | | " " ##?# #######??##???????????? | | = %[ " " ####?###???#####?#?????????? | | = = " ##?# ##??####???#??????????? | | =[ ] """""""" ##?# #? ?? ? # ????????????? | | %= * ## " ##?# ?# ? ? ??????????????? | | * !! ! ##### ### ? ? "? #?????????????? | | !!=! ? + ??""???????????????? | | ####"""##"+##########?# = ?? ? S"??????????????? | | ##! " #?####### ?# ???????????????????? | | ## " # ###??#??# ###???????????????????? | | ## """ # #######???#?????????????????????? | | ## """ # """ !??#???#?#???????????????????????? | | # # """ ????#?#?????????????????????????? | | # """ # ""? ###??#??????????????????????????? | | T + """ ########???????????????????????????????? | | # """ ###?#?###??????????????????????????????? | | # ####?#????? ???????????????????????????? | | ## ?"?? ?##?#?#????????????????????????????????? | | ##? """?#??#???????????????????????????????????? | +----------------------------------------------------+ Best States ------------- Heat Dissipation 25 Energy Generation 15 Energy Capacity 300 Matter Stores 350 Matter Capacity 350 Sight Range 16 Robot Scan Range 20 Terrain Scan Range 16 Terrain Scan Density 210 Armor Coverage 225 Resistance: KI 5 Utility Shielding 66 Evasion (%) 62 Targeting Accuracy 6 Recoil Reduction 2 Offensive Hacking 10 Defensive Hacking 5 Item Schematics ----------------- None Robot Schematics ------------------ None Fabricated ------------ Nothing Alien Tech Used ----------------- None Achievements -------------- None Challenges ------------ None RPGLIKE | -11 -10 -10 -8 --------- Run | Yrd Mat Sub Mat Levels Raised 4 | . 1 1 2 XP Earned 9900 | 3000 2425 1950 2525 XP Spent 9000 | 3000 1485 1490 3025 Upgrades 29 | 12 7 3 7 Propulsion Slot 1 | 1 . . . Utility Slot 3 | 1 . . 2 Weapon Slot 2 | 1 . 1 . Core Integrity 4 | 1 3 . . Energy Storage 1 | 1 . . . Matter Storage 1 | 1 . . . Mass Support 2 | 1 . 1 . Inventory Capacity 3 | 2 1 . . Sensor Range 4 | 3 . . 1 Terrain Scan Density 2 | . 1 1 . Ranged Accuracy 1 | . 1 . . Hack Attack % 2 | . . . 2 Hack Defense % 1 | . . . 1 KI Resistance % 1 | . 1 . . KI Damage % 1 | . . . 1 Protomatter Created 417 | . 65 306 46 Integrity Restored 843 | . 36 741 66 Core 843 | . 36 741 66 Protomatter Decayed 105 | . 39 66 . Game ------ Seed PropulsionAssembledChip Manual? 0 Play Time 00:21:30 Cumulative 684.0 hours Start 2024.03.01 @ 15:37:28 End 2024.03.01 @ 15:56:06 Sessions 1 Manual Loads 0 Difficulty Rogue Special Mode Winter2019/RPGLIKE Game No. 707 Rogue 432 Adventurer 123 Explorer 152 Win Type - Total 25 Types 19/0/4/1/0/0/0/1/0 Lore% 80 Gallery% 91 Achievement% 76 Wizard Run 0 Options --------- Layout 0 ASCII 0 Keyboard 1 Movement Numpad Keybinds 0 Fullscreen 2 Font 18/SmallcapsGlow Map View 76x50 Zoom Use 0% Tactical HUD 1 Map Filters NONE Filters NONE Steam 1 RUN: 102472aa-783b-408d-a9f8-d461df194b93